bitfinex-derivatives/quotes_SOLF0:USTF0_20241231
["timestamp","ask_amount","ask_price","bid_price","bid_amount"]
[1735669137490,3.46,196.23,196.11,13.45148313]
[1735669137793,2.5531,196.12,196.1,9.99148313]
[1735669137991,13.45148313,196.23,196.08,13.45148313]
[1735669137992,5.1037,196.22,196.08,13.45148313]
[1735669138194,11.4116323,196.22,196.08,9.99148313]
[1735669138493,2.5535,196.09,196.08,9.99148313]
[1735669141300,16.65459165,196.19,196.03,13.45148313]
[1735669141301,3.46,196.16,196.03,13.45148313]
[1735669141688,14.65761224,196.16,196.03,13.45148313]
[1735669142203,4.9394,196.16,196.06,9.99148313]
[1735669142400,2.5537,196.08,196.06,9.99148313]
[1735669142595,4.9394,196.16,196.03,3.46]
[1735669142795,0.78096476,196.15,196.03,3.46]
[1735669142994,2.5542,196.04,196.02,9.99148313]
[1735669143194,9.99148313,196.14,195.99,54.5429]
[1735669143399,2.5543,196.03,196.0,3.46]
[1735669144000,9.99148313,196.14,196.0,3.46]
[1735669144201,2.5545,196.02,196.0,3.46]
[1735669145102,24.63136908,196.16,196.0,3.46]
[1735669145299,24.63136908,196.16,196.04,9.99148313]
[1735669145498,2.5536,196.08,196.04,9.99148313]
[1735669146205,14.93088313,196.16,196.04,9.99148313]
[1735669146406,9.99148313,196.13,195.92,81.34045284]
[1735669146599,9.99148313,196.13,195.98,3.46]
[1735669146900,9.99148313,196.1,195.98,13.45148313]
[1735669147100,2.9588,196.09,195.98,3.46]
[1735669147401,2.5549,195.99,195.96,13.45148313]
[1735669148001,1.5376,196.08,195.96,9.99148313]
[1735669148201,2.5551,195.97,195.96,13.45148313]
[1735669148403,2.5551,195.97,195.96,9.99148313]
[1735669148600,9.99148313,196.07,195.93,2.9831]
[1735669148898,9.99148313,196.01,195.89,3.46]
[1735669149098,4.5266,196.0,195.89,3.46]
[1735669149497,2.5561,195.9,195.88,9.99148313]
[1735669149699,9.99148313,195.99,195.88,9.99148313]
[1735669149899,4.5266,196.0,195.88,9.99148313]
[1735669150095,4.5266,196.0,195.88,13.45148313]
[1735669150498,2.5559,195.91,195.88,13.45148313]
[1735669150704,4.5266,196.0,195.88,13.45148313]
[1735669151106,2.5552,195.96,195.91,9.99148313]
[1735669151402,4.5266,196.0,195.91,9.99148313]
[1735669151904,2.5553,195.96,195.91,9.99148313]
[1735669152209,2.989,196.0,195.91,9.99148313]
[1735669152407,2.5551,195.98,195.92,2.5557]
[1735669152702,3.46,196.04,195.94,9.99148313]
[1735669152905,2.5545,196.02,195.97,9.99148313]
[1735669153103,3.0823,196.07,195.97,9.99148313]
[1735669153904,2.5547,196.01,195.97,9.99148313]
[1735669154707,2.5544,196.02,195.97,9.99148313]
[1735669154907,3.0823,196.07,195.97,9.99148313]
[1735669155905,2.5547,196.0,195.97,9.99148313]
[1735669156301,3.0823,196.07,195.97,9.99148313]
[1735669156507,13.07378313,196.07,195.95,3.46]
[1735669157802,3.0823,196.07,195.95,3.46]
[1735669158206,3.0823,196.07,195.97,9.99148313]
[1735669158611,3.0823,196.07,195.97,13.45148313]
[1735669159411,2.5549,195.99,195.97,13.45148313]
[1735669159608,3.0823,196.07,195.97,13.45148313]
[1735669161013,2.5548,196.0,195.97,13.45148313]
[1735669161604,3.0823,196.07,195.97,13.45148313]
[1735669161807,2.5548,195.99,195.97,13.45148313]
[1735669163212,3.0823,196.07,195.97,13.45148313]
[1735669163411,13.07378313,196.07,195.94,9.99148313]
[1735669163611,0.78204785,196.06,195.94,9.99148313]
[1735669164011,13.07378313,196.07,195.94,9.99148313]
[1735669164210,0.78216924,196.06,195.94,9.99148313]
[1735669164513,13.07378313,196.07,195.94,9.99148313]
[1735669165114,13.07378313,196.07,195.92,6.0157]
[1735669165115,9.99148313,196.04,195.89,6.0161]
[1735669165415,3.46,196.03,195.91,9.99148313]
[1735669166913,2.5547,196.0,195.92,2.5557]
[1735669167116,3.46,196.03,195.91,9.99148313]
[1735669167311,3.46,196.03,195.94,9.99148313]
[1735669168009,2.555,195.98,195.94,9.99148313]
[1735669168216,3.0823,196.07,195.97,9.99148313]
[1735669169812,2.5545,196.02,195.97,12.54648313]
[1735669170014,3.0823,196.07,195.97,9.99148313]
[1735669170915,5.1065,196.12,196.0,9.99148313]
[1735669171117,13.67722677,196.14,196.03,9.99148313]
[1735669171313,2.5537,196.08,196.03,12.54568313]
[1735669171514,7.07252677,196.13,196.03,9.99148313]
[1735669171814,2.5534,196.1,196.03,9.99148313]
[1735669172012,7.07252677,196.13,196.03,9.99148313]
[1735669172614,3.1447,196.14,196.03,9.99148313]
[1735669172916,3.1447,196.14,196.03,10.00764633]
[1735669173814,2.5539,196.07,196.03,10.00764633]
[1735669174111,3.1447,196.14,196.03,10.00764633]
[1735669174312,1.565,196.14,196.06,10.00764633]
[1735669174515,7.07252677,196.16,196.06,10.00764633]
[1735669174715,33.14842519,196.18,196.06,10.00764633]
[1735669175321,2.5536,196.09,196.06,10.00764633]
[1735669175915,2.5537,196.08,196.06,10.00764633]
[1735669176221,10.00764633,196.16,196.04,3.0481]
[1735669176420,10.00764633,196.16,196.04,6.5081]
[1735669177817,0.7823792,196.15,196.04,6.5081]
[1735669178021,2.5539,196.06,196.04,6.5081]
[1735669178926,2.5538,196.07,196.04,6.5081]
[1735669179122,26.76051012,196.16,196.04,6.5081]
[1735669179319,16.75286379,196.16,196.04,6.5081]
[1735669179518,16.75286379,196.16,196.1,10.00764633]
[1735669179726,7.07252677,196.16,196.11,3.46]
[1735669179923,7.07252677,196.16,196.12,2.5531]
[1735669180120,9.62512677,196.16,196.11,3.46]
[1735669180315,9.62512677,196.16,196.12,9.99775079]
[1735669180522,2.5525,196.17,196.12,9.99775079]
[1735669180716,7.07252677,196.21,196.12,14.68175079]
[1735669181123,7.07252677,196.21,196.13,3.46]
[1735669181426,7.07252677,196.21,196.14,3.46]
[1735669181629,7.07252677,196.21,196.12,3.46]
[1735669181923,9.99775079,196.22,196.12,3.46]
[1735669182117,9.99775079,196.22,196.09,9.99775079]
[1735669182321,9.99775079,196.22,196.1,3.46]
[1735669182524,13.82908582,196.22,196.1,3.46]
[1735669182725,20.90161259,196.22,196.1,3.46]
[1735669182928,2.5533,196.11,196.1,3.46]
[1735669185223,2.5534,196.1,196.09,9.99775079]
[1735669185428,9.99775079,196.19,196.09,3.46]
[1735669185618,11.49945079,196.19,196.09,3.46]
[1735669185927,2.5534,196.1,196.09,3.46]
[1735669186629,11.49945079,196.19,196.06,9.99775079]
[1735669186630,2.5537,196.08,196.06,9.99775079]
[1735669186930,2.5537,196.08,196.07,3.46]
[1735669187319,21.19006948,196.19,196.06,9.99775079]
[1735669187530,9.99775079,196.16,196.05,3.46]
[1735669187827,3.84725153,196.15,196.03,3.46]
[1735669188028,12.75571869,196.15,196.03,3.46]
[1735669188327,2.5541,196.04,196.03,3.46]
[1735669191325,2.5541,196.04,196.01,9.99775079]
[1735669191531,9.99775079,196.13,196.02,3.46]
[1735669192223,12.75571869,196.15,196.02,3.46]
[1735669192425,0.7818628,196.14,196.02,3.46]
[1735669192632,12.75571869,196.15,196.04,9.99775079]
[1735669192833,9.69061869,196.15,196.07,9.99775079]
[1735669193030,7.07252677,196.17,196.08,3.46]
[1735669193935,1.5017,196.19,196.08,3.46]
[1735669194322,2.5535,196.1,196.08,3.46]
[1735669194531,1.5017,196.19,196.08,3.46]
[1735669195033,2.5533,196.11,196.08,3.46]
[1735669195625,4.9037,196.21,196.1,9.99775079]
[1735669195626,2.5528,196.15,196.1,9.99775079]
[1735669195824,1.4437,196.21,196.1,9.99775079]
[1735669197331,2.5532,196.12,196.1,9.99775079]
[1735669197530,1.4437,196.21,196.1,9.99775079]
[1735669198430,2.5532,196.11,196.1,9.99775079]
[1735669199334,2.5531,196.12,196.1,9.99775079]
[1735669199737,1.4437,196.21,196.1,9.99775079]
[1735669199941,2.5532,196.11,196.1,9.99775079]
[1735669200638,1.4437,196.21,196.08,3.46]
[1735669200853,1.4437,196.21,196.08,13.45775079]
[1735669201343,1.4437,196.21,196.11,9.99775079]
[1735669201738,28.20812519,196.24,196.11,9.99775079]
[1735669201936,28.20812519,196.24,196.08,3.46]
[1735669201937,0.7823811,196.23,196.08,3.46]
[1735669202142,0.7823811,196.23,196.1,9.99775079]
[1735669202143,9.99775079,196.22,196.1,9.99775079]
[1735669202745,5.1034,196.23,196.13,9.99775079]
[1735669202939,2.5527,196.15,196.14,3.44]
[1735669204039,2.5533,196.11,196.1,3.44]
[1735669204741,2.5531,196.13,196.1,3.44]
[1735669204951,7.07252677,196.2,196.1,3.44]
[1735669205339,2.5532,196.11,196.1,3.44]
[1735669207141,2.5531,196.12,196.1,3.44]
[1735669207334,16.77989478,196.18,196.1,3.44]
[1735669207534,7.07252677,196.18,196.1,3.44]
[1735669207736,7.07252677,196.18,196.12,9.99775079]
[1735669207939,2.5528,196.15,196.12,9.99775079]
[1735669208645,7.07252677,196.21,196.12,9.99775079]
[1735669208841,2.5529,196.14,196.12,9.99775079]
[1735669209244,16.80283751,196.21,196.12,9.99775079]
[1735669209442,9.73031074,196.21,196.18,9.99775079]
[1735669209641,2.5521,196.2,196.19,3.44]
[1735669210438,7.07252677,196.22,196.19,13.43775079]
[1735669210744,7.07252677,196.25,196.19,13.43775079]
[1735669210943,7.07252677,196.25,196.19,15.98995079]
[1735669211141,2.5518,196.22,196.19,13.43775079]
[1735669211443,7.07252677,196.25,196.19,13.43775079]
[1735669211642,2.552,196.21,196.19,13.43775079]
[1735669211859,10.90196495,196.29,196.19,13.43775079]
[1735669212037,0.78565949,196.28,196.18,3.44]
[1735669212241,2.5524,196.18,196.16,9.99775079]
[1735669212440,2.5524,196.18,196.17,3.44]
[1735669214142,9.99775079,196.25,196.07,2.9348]
[1735669214344,0.78582536,196.24,196.11,9.99775079]
[1735669214647,2.553,196.13,196.12,3.44]
[1735669216337,12.9924583,196.23,196.07,2.9348]
[1735669216541,9.99775079,196.19,196.08,3.44]
[1735669216845,2.30568168,196.18,196.05,13.43775079]
[1735669217044,2.5539,196.06,196.05,13.43775079]
[1735669217239,9.99775079,196.16,196.02,9.99775079]
[1735669217546,2.5543,196.03,196.02,3.44]
[1735669218541,16.68047592,196.12,196.0,1.571]
[1735669218745,16.68047592,196.12,196.01,3.44]
[1735669218948,8.38842768,196.11,196.0,5.011]
[1735669219143,11.43622577,196.11,196.0,5.011]
[1735669219338,3.83298621,196.11,196.0,5.011]
[1735669219546,24.28535156,196.12,196.0,5.011]
[1735669219745,3.83298621,196.11,196.0,5.011]
[1735669220047,44.88860111,196.12,196.0,5.011]
[1735669220248,4.6188174,196.11,196.01,3.44]
[1735669220548,13.57787592,196.11,196.01,3.44]
[1735669220943,2.5543,196.03,196.01,3.44]
[1735669221539,2.5543,196.03,195.97,2.555]
[1735669221540,3.44,196.1,195.98,3.44]
[1735669221746,2.2614507,196.09,195.98,3.44]
[1735669221940,0.7859507,196.08,195.98,3.44]
[1735669223158,2.5548,195.99,195.98,3.44]
[1735669224145,2.5546,196.01,195.98,3.44]
[1735669224443,11.22038971,196.09,195.99,9.99775079]
[1735669224648,1.4755,196.09,195.99,9.99775079]
[1735669225450,2.5542,196.04,195.99,9.99775079]
[1735669226553,1.4755,196.09,195.99,9.99775079]
[1735669227753,0.78467604,196.08,195.98,3.44]
[1735669228055,0.78467604,196.08,195.96,9.99775079]
[1735669228352,0.78467604,196.08,195.96,13.43775079]
[1735669228552,9.99775079,196.07,195.96,3.44]
[1735669229150,2.5551,195.97,195.96,3.44]
[1735669229945,2.555,195.98,195.93,9.99775079]
[1735669230250,2.555,195.98,195.94,3.44]
[1735669230750,9.99775079,196.07,195.94,3.44]
[1735669231146,0.78414184,196.06,195.94,3.44]
[1735669231753,2.5551,195.97,195.94,3.44]
[1735669232650,2.5551,195.97,195.93,9.99775079]
[1735669232852,2.5551,195.97,195.94,3.44]
[1735669233151,9.99775079,196.07,195.94,3.44]
[1735669233360,2.555,195.98,195.94,3.44]
[1735669233545,9.99775079,196.07,195.94,3.44]
[1735669233749,2.5542,196.04,195.99,9.99775079]
[1735669233956,1.4755,196.09,195.99,13.43775079]
[1735669234155,19.87837094,196.12,196.02,9.99775079]
[1735669234355,21.33407094,196.12,196.02,9.99775079]
[1735669234553,4.5583,196.12,196.02,9.99775079]
[1735669235154,2.5541,196.05,195.99,15.99255079]
[1735669236853,2.5542,196.04,195.99,15.99255079]
[1735669238659,2.5543,196.03,195.99,15.99255079]
[1735669240463,2.5544,196.02,195.99,13.43775079]
[1735669240761,9.99775079,196.1,195.99,13.43775079]
[1735669241259,9.99775079,196.1,195.99,3.44]
[1735669241852,2.5545,196.02,195.99,3.44]
[1735669242864,2.5538,196.07,195.99,5.9947]
[1735669243061,13.43775079,196.1,195.99,15.99245079]
[1735669243765,2.5538,196.07,195.99,15.99245079]
[1735669243962,3.44,196.1,195.99,13.43775079]
[1735669244171,7.9983,196.12,196.0,2.5545]
[1735669244367,2.5541,196.05,196.0,2.5545]
[1735669245566,4.5583,196.12,196.03,2.5542]
[1735669245964,2.5535,196.1,196.03,2.5542]
[1735669246266,4.5583,196.12,196.02,12.55215079]
[1735669246859,9.7468629,196.15,196.05,2.554]
[1735669247057,9.7468629,196.15,196.04,3.44]
[1735669247264,9.99775079,196.16,196.04,3.44]
[1735669247567,0.78816973,196.15,196.04,3.44]
[1735669248166,0.78816954,196.14,196.04,3.44]
[1735669248470,0.78816954,196.13,196.04,3.44]
[1735669248667,2.554,196.06,196.04,3.44]
[1735669249063,23.18656934,196.16,196.04,3.44]
[1735669249263,4.62120552,196.15,196.04,3.44]
[1735669249459,0.78828661,196.14,196.04,3.44]
[1735669249669,4.22828661,196.14,196.04,3.44]
[1735669249969,2.554,196.06,196.04,3.44]
[1735669250671,2.5536,196.08,196.04,3.44]
[1735669250967,3.44,196.14,196.04,3.44]
[1735669251665,0.78826483,196.13,196.02,3.44]
[1735669252372,2.5538,196.07,196.02,5.9944]
[1735669254571,3.44,196.14,196.02,5.9944]
[1735669254773,0.78822719,196.13,196.02,5.9944]
[1735669255071,2.5541,196.05,196.02,3.44]
[1735669255584,2.5539,196.06,196.02,3.44]
[1735669255778,16.83228347,196.15,196.04,9.99775079]
[1735669256066,2.5533,196.11,196.07,9.99775079]
[1735669256374,2.5533,196.11,196.07,13.43775079]
[1735669256568,28.20812519,196.16,196.11,2.5532]
[1735669256762,28.20812519,196.16,196.12,3.44]
[1735669257472,2.553,196.13,196.12,3.44]
[1735669258776,2.5535,196.09,196.08,3.44]
[1735669258975,13.82937036,196.17,196.08,3.44]
[1735669259178,9.99775079,196.14,196.01,9.99775079]
[1735669259476,9.99775079,196.14,196.02,3.44]
[1735669259676,2.5534,196.1,196.02,3.44]
[1735669259874,21.46455401,196.14,196.01,9.99775079]
[1735669260079,14.4024843,196.13,196.01,13.43775079]
[1735669260273,21.24850224,196.13,196.01,13.43775079]
[1735669260472,3.83255406,196.12,196.01,13.43775079]
[1735669261678,2.5538,196.07,196.01,15.99225079]
[1735669261975,3.83255406,196.12,196.01,15.99225079]
[1735669262167,3.83255406,196.12,196.01,13.43775079]
[1735669262376,13.43775079,196.11,195.98,11.46055079]
[1735669262580,0.78840464,196.1,195.98,11.46055079]
[1735669262976,9.99775079,196.08,195.97,3.44]
[1735669263172,4.6028,196.07,195.97,3.44]
[1735669263369,2.5548,196.0,195.97,3.44]
[1735669263573,8.43535406,196.07,195.97,3.44]
[1735669263777,22.02920982,196.07,195.97,3.44]
[1735669263984,3.83255406,196.06,195.97,3.44]
[1735669264290,18.21705308,196.07,195.95,13.43775079]
[1735669264478,11.87379926,196.06,195.95,13.43775079]
[1735669264777,2.5551,195.97,195.95,3.44]
[1735669264979,21.47554282,196.05,195.92,9.99775079]
[1735669265170,2.5554,195.95,195.92,13.43775079]
[1735669265676,2.5558,195.92,195.88,9.99775079]
[1735669265875,9.99775079,195.99,195.88,9.99775079]
[1735669266181,4.4992,195.98,195.85,13.16865079]
[1735669266379,2.5561,195.89,195.86,3.44]
[1735669266683,4.4992,195.98,195.86,3.44]
[1735669266979,4.4992,195.98,195.84,9.99775079]
[1735669266980,2.5562,195.89,195.84,9.99775079]
[1735669267173,13.43775079,195.96,195.84,9.99775079]
[1735669267375,2.5561,195.89,195.84,9.99775079]
[1735669267575,13.43775079,195.96,195.85,3.44]
[1735669267770,3.44,195.96,195.85,3.44]
[1735669268276,9.99775079,195.91,195.77,7.03295533]
[1735669268475,13.43775079,195.91,195.77,9.99775079]
[1735669268684,2.5565,195.87,195.77,9.99775079]
[1735669268979,1.529,195.9,195.77,9.99775079]
[1735669269177,2.5574,195.8,195.77,9.99775079]
[1735669269369,9.99775079,195.85,195.74,28.13182134]
[1735669269779,2.5572,195.81,195.73,10.6547]
[1735669270076,2.5572,195.81,195.73,8.0965]
[1735669270282,3.44,195.86,195.73,4.6565]
[1735669270480,3.44,195.86,195.74,3.44]
[1735669270782,2.5578,195.76,195.71,16.0599318]
[1735669270982,19.4999318,195.86,195.67,19.0684318]
[1735669271185,14.40182188,195.85,195.68,3.44]
[1735669271482,2.5581,195.74,195.68,3.44]
[1735669272184,1.4611,195.81,195.68,3.44]
[1735669272577,3.44,195.85,195.71,16.0599318]
[1735669273278,3.44,195.85,195.7,16.0599318]
[1735669274373,2.5574,195.79,195.71,2.5584]
[1735669275083,2.5574,195.79,195.72,2.5583]
[1735669275284,3.44,195.85,195.72,2.5583]
[1735669275682,3.44,195.85,195.73,3.44]
[1735669275880,2.5575,195.79,195.73,3.44]
[1735669276288,3.44,195.85,195.73,5.9982]
[1735669276481,2.5574,195.8,195.73,3.44]
[1735669276787,3.44,195.85,195.73,3.44]
[1735669276986,3.44,195.85,195.73,5.9982]
[1735669277186,3.44,195.85,195.73,3.44]
[1735669277388,3.44,195.85,195.71,3.44]
[1735669277578,2.558,195.75,195.71,3.44]
[1735669277780,16.0599318,195.83,195.68,5.9988]
[1735669277987,16.0599318,195.83,195.68,3.44]
[1735669278285,3.44,195.85,195.63,3.44]
[1735669278286,16.0599318,195.79,195.63,3.44]
[1735669278487,8.1006,195.78,195.63,3.44]
[1735669278887,8.1006,195.78,195.63,5.9995]
[1735669278888,2.5581,195.74,195.63,5.9995]
[1735669279191,8.1006,195.78,195.63,3.44]
[1735669279588,4.6606,195.78,195.66,16.0599318]
[1735669279789,1.5375,195.78,195.66,16.0599318]
[1735669279991,3.44,195.84,195.67,4.5628]
[1735669280286,4.9775,195.84,195.68,3.44]
[1735669280490,4.9775,195.84,195.71,16.0599318]
[1735669280789,4.9775,195.84,195.72,2.5582]
[1735669280989,4.9775,195.84,195.73,3.44]
[1735669281988,1.5375,195.84,195.73,3.44]
[1735669282182,1.5375,195.84,195.71,16.0599318]
[1735669282183,17.5974318,195.84,195.69,3.44]
[1735669282584,2.5578,195.76,195.69,3.44]
[1735669282795,3.44,195.83,195.69,3.44]
[1735669283191,2.5574,195.79,195.69,3.44]
[1735669283395,3.44,195.83,195.69,3.44]
[1735669283799,2.5583,195.72,195.69,3.44]
[1735669284290,3.44,195.83,195.69,3.44]
[1735669284487,16.0599318,195.8,195.65,3.44]
[1735669284684,3.1004,195.79,195.64,3.44]
[1735669284886,3.44,195.78,195.64,3.44]
[1735669285099,2.559,195.68,195.64,3.44]
[1735669285395,2.559,195.68,195.62,3.44]
[1735669285592,2.559,195.68,195.62,5.9996]
[1735669285989,1.5805,195.75,195.63,16.0599318]
[1735669286188,1.5805,195.75,195.63,18.6193318]
[1735669286593,1.5805,195.75,195.65,2.5591]
[1735669287296,2.5586,195.7,195.65,2.5591]
[1735669287693,2.5583,195.73,195.67,2.5589]
[1735669287897,3.44,195.78,195.67,5.9989]
[1735669288097,3.44,195.78,195.67,3.44]
[1735669288296,2.5585,195.71,195.67,3.44]
[1735669288500,3.44,195.78,195.67,3.44]
[1735669288906,3.44,195.78,195.67,5.9989]
[1735669289100,3.44,195.78,195.67,3.44]
[1735669289703,3.1004,195.79,195.67,3.44]
[1735669289899,6.5404,195.79,195.67,3.44]
[1735669290100,2.5588,195.68,195.67,3.44]
[1735669290402,6.5404,195.79,195.64,3.44]
[1735669290605,2.559,195.68,195.62,2.5595]
[1735669290801,3.44,195.74,195.6,16.0599318]
[1735669290999,2.5586,195.71,195.63,2.5595]
[1735669291203,3.44,195.74,195.61,3.44]
[1735669291404,3.44,195.74,195.6,16.0599318]
[1735669291606,2.5597,195.62,195.57,3.44]
[1735669291907,2.5597,195.62,195.56,16.0599318]
[1735669292105,2.5597,195.62,195.57,6.0003]
[1735669292307,2.5593,195.65,195.57,3.44]
[1735669293006,2.5593,195.65,195.6,2.5598]
[1735669293505,2.5593,195.65,195.57,3.44]
[1735669293709,2.5593,195.65,195.61,2.5597]
[1735669294508,16.0599318,195.77,195.6,16.0599318]
[1735669294705,2.5588,195.69,195.61,6.4271]
[1735669294903,3.44,195.76,195.61,7.9928]
[1735669296108,2.5593,195.65,195.61,7.1125]
[1735669299109,2.5595,195.64,195.61,2.9871]
[1735669300113,2.5596,195.63,195.56,16.0599318]
[1735669300311,3.1085,195.7,195.56,16.0599318]
[1735669300512,4.6837,195.7,195.56,22.0603318]
[1735669300714,2.5599,195.61,195.56,22.0603318]
[1735669301013,2.5599,195.61,195.56,19.4999318]
[1735669301232,2.5599,195.61,195.57,2.5603]
[1735669301720,2.56,195.6,195.56,22.0603318]
[1735669302010,4.6837,195.7,195.56,19.4999318]
[1735669302216,2.5598,195.61,195.57,2.5602]
[1735669302518,2.5598,195.61,195.56,19.4999318]
[1735669302712,4.6837,195.7,195.61,2.5596]
[1735669302912,4.6837,195.7,195.56,19.4999318]
[1735669303215,2.5593,195.65,195.6,2.5599]
[1735669303414,2.5593,195.65,195.56,19.4999318]
[1735669303919,2.5591,195.67,195.56,19.4999318]
[1735669304219,3.44,195.74,195.56,19.4999318]
[1735669305113,3.44,195.74,195.6,16.0599318]
[1735669305314,4.4735,195.75,195.7,2.5586]
[1735669305716,2.5581,195.74,195.7,2.5586]
[1735669306420,2.5581,195.74,195.69,2.5587]
[1735669306608,16.0599318,195.8,195.67,3.44]
[1735669306814,7.07252677,195.81,195.67,3.44]
[1735669306815,2.5578,195.77,195.68,16.0599318]
[1735669307314,7.07252677,195.81,195.68,16.0599318]
[1735669307516,59.7036427,195.83,195.68,16.0599318]
[1735669307517,3.44,195.83,195.68,16.0599318]
[1735669307815,2.5578,195.76,195.71,2.5583]
[1735669308018,16.0599318,195.82,195.67,3.44]
[1735669308813,27.47481602,195.82,195.67,3.44]
[1735669309017,16.0599318,195.82,195.67,3.44]
[1735669309216,2.5578,195.76,195.71,2.5584]
[1735669309815,16.0599318,195.82,195.67,3.44]
[1735669310012,10.51252677,195.83,195.68,16.0599318]
[1735669310212,7.07252677,195.83,195.68,16.0599318]
[1735669310517,28.20812519,195.83,195.68,16.0599318]
[1735669311118,28.20812519,195.83,195.7,2.5585]
[1735669311320,3.44,195.84,195.68,16.0599318]
[1735669311825,14.88078412,195.84,195.68,16.0599318]
[1735669312020,2.558,195.75,195.7,2.5586]
[1735669312520,2.5585,195.71,195.67,3.44]
[1735669312819,16.0599318,195.78,195.65,3.0293]
[1735669313013,9.74663714,195.77,195.65,3.0293]
[1735669313213,2.5581,195.74,195.65,3.0293]
[1735669313415,13.58529313,195.77,195.65,3.0293]
[1735669314417,2.5587,195.7,195.65,5.5885]
[1735669314617,2.5587,195.7,195.65,2.5592]
[1735669315722,3.83865599,195.76,195.63,3.44]
[1735669315920,3.83865599,195.76,195.64,2.5593]
[1735669316121,3.83865599,195.76,195.63,3.44]
[1735669316311,2.5587,195.7,195.65,2.5592]
[1735669318014,2.5587,195.69,195.65,2.5592]
[1735669318816,2.5589,195.68,195.65,2.5592]
[1735669320420,9.74663714,195.77,195.66,10.04674235]
[1735669320731,10.04674235,195.77,195.66,10.04674235]
[1735669320922,23.63294833,195.77,195.66,10.04674235]
[1735669321124,3.83956884,195.76,195.66,10.04674235]
[1735669321816,10.04674235,195.74,195.63,10.04674235]
[1735669322625,13.88631119,195.74,195.63,10.04674235]
[1735669322815,2.559,195.67,195.63,12.60614235]
[1735669323018,3.44,195.73,195.6,10.04674235]
[1735669323220,2.5596,195.63,195.58,6.0001]
[1735669323720,4.6361,195.7,195.57,10.04674235]
[1735669323918,2.5597,195.62,195.57,10.04674235]
[1735669324318,2.5598,195.61,195.58,2.5601]
[1735669325122,3.44,195.68,195.57,10.04674235]
[1735669325321,13.48674235,195.68,195.56,3.44]
[1735669325721,23.23337949,195.68,195.57,10.04674235]
[1735669325918,2.5596,195.63,195.59,2.56]
[1735669326319,2.56,195.6,195.57,10.04674235]
[1735669326625,17.32822727,195.68,195.55,2.9976]
[1735669327021,9.74663714,195.67,195.55,2.9976]
[1735669327319,2.56,195.6,195.56,2.5603]
[1735669327918,9.74663714,195.69,195.57,10.04674235]
[1735669328121,9.74663714,195.69,195.6,10.04674235]
[1735669328321,4.6361,195.7,195.6,10.04674235]
[1735669328923,2.559,195.68,195.64,2.5593]
[1735669329119,3.8403114,195.73,195.64,2.5593]
[1735669329421,2.5593,195.65,195.6,10.04674235]
[1735669329616,27.13987156,195.74,195.61,2.5596]
[1735669329617,3.8403114,195.73,195.61,2.5596]
[1735669329824,0.78935259,195.72,195.6,10.04674235]
[1735669330026,2.5587,195.7,195.63,10.04674235]
[1735669330728,14.72161781,195.75,195.63,10.04674235]
[1735669330729,21.79414458,195.75,195.63,10.04674235]
[1735669330930,21.54215133,195.74,195.61,10.04674235]
[1735669331232,3.84037549,195.73,195.61,10.04674235]
[1735669331424,9.81281781,195.73,195.61,10.04674235]
[1735669331634,9.81281781,195.73,195.61,13.48674235]
[1735669331938,2.5591,195.67,195.63,2.5595]
[1735669332325,19.85956016,195.74,195.61,13.48674235]
[1735669332532,2.5587,195.7,195.64,10.04674235]
[1735669332839,14.72161781,195.75,195.64,10.04674235]
[1735669333031,2.5589,195.68,195.65,2.5592]
[1735669333636,8.74878073,195.75,195.64,10.04674235]
[1735669334040,2.5586,195.7,195.64,10.04674235]
[1735669334235,16.41008329,195.75,195.65,2.5592]
[1735669334434,9.81281781,195.74,195.64,10.04674235]
[1735669334630,2.5586,195.7,195.64,10.04674235]
[1735669335034,1.4688,195.75,195.65,2.5592]
[1735669335233,2.5588,195.69,195.65,2.5592]